Workbook

Sheet Spreadsheet13.1
B9: Parameters
B10: Interest rate | D10: 0.05
B11: Counterparty 5Y Spread | D11: 500
B12: Institution 5Y Spread | D12: 250
B13: Counterparty Recovery | D13: 0.4
B14: Institution Recovery | D14: 0.4
B16: Calculations
B17: Conditional | D17: Unconditional
B18: CVA | C18: =(1-CntrptyRec)*SUMPRODUCT(D25:D88,E24:E87,G25:G88,I25:I88) -> 241171.4443 | D18: UCVA | E18: =(1-CntrptyRec)*SUMPRODUCT(D25:D88,G25:G88,I25:I88) -> 262292.5343
B19: DVA | C19: =-(1-InstitutionRec)*SUMPRODUCT(F25:F88,C24:C87,H25:H88,I25:I88) -> -246293.2309 | D19: UDVA | E19: =-(1-InstitutionRec)*SUMPRODUCT(F25:F88,H25:H88,I25:I88) -> -289353.2737
B20: BCVA | C20: =C18+C19 -> -5121.78661 | D20: UBCVA | E20: =E18+E19 -> -27060.7394
C23: Survival (C) | D23: Def Prob (C) | E23: Survival (I) | F23: Def Prob (I) | G23: EE | H23: NEE | I23: DF
B24: 0 | C24: 1 | E24: 1 | G24: 0 | H24: 0 | I24: =EXP(-5%*B24) -> 1
B25: 0.002747252747 | C25: =C24*EXP(-(B25-B24)*SpreadCntrpty/10000/(1-CntrptyRec)) -> 0.9997710885 | D25: =C24-C25 -> 0.0002289115247 | E25: =E24*EXP(-(B25-B24)*InstitutionSpread/10000/(1-InstitutionRec)) -> 0.9998855377 | F25: =-E24+E25 -> -0.0001144623132 | G25: 156872.4536 | H25: -153796.6557 | I25: =EXP(-5%*B25) -> 0.9998626468
B26: 0.02747252747 | C26: 0.9977132413 | D26: 0.002057847139 | E26: 0.9988559663 | F26: =-E25+E26 -> -0.001029571425 | G26: 447001.2071 | H26: -511027.2187 | I26: 0.9986273166
B27: 0.05494505495 | C27: 0.9954317119 | D27: 0.002281529399 | E27: 0.9977132413 | F27: -0.001142724925 | G27: 630855.9608 | H27: -759487.5794 | I27: 0.9972565175
B28: 0.08241758242 | C28: 0.9931553998 | D28: 0.002276312092 | E28: 0.9965718237 | F28: -0.001141417609 | G28: 727309.0745 | H28: -984517.16 | I28: 0.9958876001
B29: 0.1648351648 | C29: 0.9863576482 | D29: 0.006797751603 | E29: 0.9931553998 | F29: -0.003416423881 | G29: 944687.1747 | H29: -1416638.479 | I29: 0.9917921119
B30: 0.2472527473 | C30: 0.9796064245 | D30: 0.006751223711 | E30: 0.9897506881 | F30: -0.003404711778 | G30: 980508.9607 | H30: -1813069.247 | I30: 0.9877134661
B31: 0.3296703297 | C31: 0.9729014102 | D31: 0.006705014284 | E31: 0.9863576482 | F31: -0.003393039825 | G31: 1090906.179 | H31: -2129213.919 | I31: 0.9836515933
B32: 0.4120879121 | C32: 0.9662422891 | D32: 0.006659121143 | E32: 0.9829762404 | F32: -0.003381407887 | G32: 1196140.876 | H32: -2539759.996 | I32: 0.9796064245
B33: 0.4945054945 | C33: 0.959628747 | D33: 0.006613542121 | E33: 0.9796064245 | F33: -0.003369815825 | G33: 1188799.09 | H33: -2829756.911 | I33: 0.9755778911
B34: 0.5769230769 | C34: 0.9530604719 | D34: 0.00656827507 | E34: 0.976248161 | F34: -0.003358263502 | G34: 1501480.508 | H34: -2622916.402 | I34: 0.9715659247
B35: 0.6593406593 | C35: 0.9465371541 | D35: 0.006523317853 | E35: 0.9729014102 | F35: -0.003346750783 | G35: 1498393.521 | H35: -2903819.439 | I35: 0.967570457
B36: 0.7417582418 | C36: 0.9400584857 | D36: 0.006478668351 | E36: 0.9695661327 | F36: -0.003335277531 | G36: 1435685.56 | H36: -3214667.089 | I36: 0.9635914203
B37: 0.8241758242 | C37: 0.9336241613 | D37: 0.006434324456 | E37: 0.9662422891 | F37: -0.003323843612 | G37: 1516901.768 | H37: -3443259.606 | I37: 0.959628747
B38: 0.9065934066 | C38: 0.9272338772 | D38: 0.006390284078 | E38: 0.9629298402 | F38: -0.00331244889 | G38: 1463426.214 | H38: -3701271.043 | I38: 0.9556823698
B39: 0.989010989 | C39: 0.920887332 | D39: 0.006346545139 | E39: 0.959628747 | F39: -0.003301093231 | G39: 1397729.239 | H39: -3888231.829 | I39: 0.9517522216
B40: 1.071428571 | C40: 0.9145842265 | D40: 0.006303105575 | E40: 0.9563389705 | F40: -0.003289776502 | G40: 1620135.659 | H40: -3525220.319 | I40: 0.9478382359
B41: 1.153846154 | C41: 0.9083242631 | D41: 0.006259963338 | E41: 0.9530604719 | F41: -0.003278498568 | G41: 1592243.97 | H41: -3698635.036 | I41: 0.9439403459
B42: 1.236263736 | C42: 0.9021071467 | D42: 0.006217116391 | E42: 0.9497932126 | F42: -0.003267259297 | G42: 1625436.073 | H42: -3910498.199 | I42: 0.9400584857
B43: 1.318681319 | C43: 0.895932584 | D43: 0.006174562716 | E43: 0.9465371541 | F43: -0.003256058556 | G43: 1620920.614 | H43: -4028796.159 | I43: 0.9361925892
B44: 1.401098901 | C44: 0.8898002837 | D44: 0.006132300303 | E44: 0.9432922578 | F44: -0.003244896213 | G44: 1630026.489 | H44: -4191455.531 | I44: 0.9323425909
B45: 1.483516484 | C45: 0.8837099566 | D45: 0.006090327159 | E45: 0.9400584857 | F45: -0.003233772137 | G45: 1661223.268 | H45: -4330779.694 | I45: 0.9285084253
B46: 1.565934066 | C46: 0.8776613153 | D46: 0.006048641305 | E46: 0.9368357995 | F46: -0.003222686196 | G46: 1896267.678 | H46: -4012770.847 | I46: 0.9246900273
B47: 1.648351648 | C47: 0.8716540745 | D47: 0.006007240774 | E47: 0.9336241613 | F47: -0.00321163826 | G47: 1938649.234 | H47: -4215728.693 | I47: 0.920887332
B48: 1.730769231 | C48: 0.8656879509 | D48: 0.005966123613 | E48: 0.9304235331 | F48: -0.003200628198 | G48: 1914384.733 | H48: -4257420.084 | I48: 0.917100275
B49: 1.813186813 | C49: 0.859762663 | D49: 0.005925287882 | E49: 0.9272338772 | F49: -0.00318965588 | G49: 1897175.333 | H49: -4308451.068 | I49: 0.9133287919
B50: 1.895604396 | C50: 0.8538779313 | D50: 0.005884731656 | E50: 0.924055156 | F50: -0.003178721178 | G50: 1891604.629 | H50: -4436893.482 | I50: 0.9095728186
B51: 1.978021978 | C51: 0.8480334783 | D51: 0.00584445302 | E51: 0.920887332 | F51: -0.003167823961 | G51: 1862476.453 | H51: -4510921.176 | I51: 0.9058322914
B52: 2.06043956 | C52: 0.8422290282 | D52: 0.005804450076 | E52: 0.9177303679 | F52: -0.003156964102 | G52: 2005894.525 | H52: -4138304.813 | I52: 0.9021071467
B53: 2.142857143 | C53: 0.8364643073 | D53: 0.005764720937 | E53: 0.9145842265 | F53: -0.003146141473 | G53: 2058717.765 | H53: -4169073.794 | I53: 0.8983973213
B54: 2.225274725 | C54: 0.8307390436 | D54: 0.005725263727 | E54: 0.9114488705 | F54: -0.003135355945 | G54: 2059718.129 | H54: -4179745.256 | I54: 0.8947027522
B55: 2.307692308 | C55: 0.825052967 | D55: 0.005686076586 | E55: 0.9083242631 | F55: -0.003124607392 | G55: 2077630.082 | H55: -4157349.898 | I55: 0.8910233767
B56: 2.39010989 | C56: 0.8194058093 | D56: 0.005647157665 | E56: 0.9052103674 | F56: -0.003113895687 | G56: 1964755.831 | H56: -4203903.894 | I56: 0.8873591322
B57: 2.472527473 | C57: =C56*EXP(-(B57-B56)*SpreadCntrpty/10000/(1-CntrptyRec)) -> 0.8137973042 | D57: =C56-C57 -> 0.005608505129 | E57: =E56*EXP(-(B57-B56)*InstitutionSpread/10000/(1-InstitutionRec)) -> 0.9021071467 | F57: -0.003103220704 | G57: 1863411.806 | H57: -4255274.27 | I57: 0.8837099566
B58: 2.554945055 | C58: 0.808227187 | D58: 0.005570117154 | E58: 0.8990145644 | F58: -0.003092582316 | G58: 2006002.355 | H58: -3898548.372 | I58: 0.8800757878
B59: 2.637362637 | C59: 0.8026951951 | D59: 0.005531991929 | E59: 0.895932584 | F59: -0.003081980399 | G59: 2007368.28 | H59: -3917549.482 | I59: 0.8764565641
B60: 2.71978022 | C60: 0.7972010674 | D60: 0.005494127656 | E60: 0.8928611692 | F60: -0.003071414827 | G60: 1980181.943 | H60: -3908787.421 | I60: 0.8728522242
B61: 2.802197802 | C61: 0.7917445449 | D61: 0.005456522549 | E61: 0.8898002837 | F61: -0.003060885476 | G61: 1975839.955 | H61: -3836739.554 | I61: 0.8692627068
B62: 2.884615385 | C62: 0.7863253701 | D62: 0.005419174834 | E62: 0.8867498915 | F62: -0.003050392221 | G62: 1876590.647 | H62: -3844930.172 | I62: 0.8656879509
B63: 2.967032967 | C63: 0.7809432873 | D63: 0.005382082749 | E63: 0.8837099566 | F63: -0.003039934938 | G63: 1791108.777 | H63: -3831388.287 | I63: 0.8621278958
B64: 3.049450549 | C64: 0.7755980428 | D64: 0.005345244545 | E64: 0.880680443 | F64: -0.003029513506 | G64: 1906796.063 | H64: -3269798.12 | I64: 0.8585824811
B65: 3.131868132 | C65: 0.7702893843 | D65: 0.005308658483 | E65: 0.8776613153 | F65: -0.003019127799 | G65: 1844680.87 | H65: -3105951.35 | I65: 0.8550516465
B66: 3.214285714 | C66: 0.7650170614 | D66: 0.005272322839 | E66: 0.8746525376 | F66: -0.003008777697 | G66: 1699516.282 | H66: -3008959.755 | I66: 0.8515353322
B67: 3.296703297 | C67: 0.7597808256 | D67: 0.005236235897 | E67: 0.8716540745 | F67: -0.002998463077 | G67: 1604310.53 | H67: -2833186.433 | I67: 0.8480334783
B68: 3.379120879 | C68: 0.7545804296 | D68: 0.005200395956 | E68: 0.8686658907 | F68: -0.002988183817 | G68: 1521538.033 | H68: -2675797.939 | I68: 0.8445460255
B69: 3.461538462 | C69: 0.7494156283 | D69: 0.005164801325 | E69: 0.8656879509 | F69: -0.002977939796 | G69: 1379207.186 | H69: -2599877.451 | I69: 0.8410729144
B70: 3.543956044 | C70: 0.7442861779 | D70: 0.005129450325 | E70: 0.86272022 | F70: -0.002967730893 | G70: 1469271.334 | H70: -2051116.039 | I70: 0.8376140862
B71: 3.626373626 | C71: 0.7391918367 | D71: 0.005094341288 | E71: 0.859762663 | F71: -0.002957556989 | G71: 1358332.792 | H71: -1968949.394 | I71: 0.8341694821
B72: 3.708791209 | C72: 0.7341323641 | D72: 0.005059472559 | E72: 0.856815245 | F72: -0.002947417962 | G72: 1269422.62 | H72: -1848731.014 | I72: 0.8307390436
B73: 3.791208791 | C73: 0.7291075216 | D73: 0.005024842493 | E73: 0.8538779313 | F73: -0.002937313694 | G73: 1153961.824 | H73: -1695773.291 | I73: 0.8273227124
B74: 3.873626374 | C74: 0.7241170722 | D74: 0.004990449455 | E74: 0.8509506873 | F74: -0.002927244065 | G74: 1053227.235 | H74: -1576991.953 | I74: 0.8239204305
B75: 3.956043956 | C75: 0.7191607803 | D75: 0.004956291824 | E75: 0.8480334783 | F75: -0.002917208956 | G75: 935819.8598 | H75: -1539867.617 | I75: 0.8205321401
B76: 4.038461538 | C76: 0.7142384123 | D76: 0.004922367988 | E76: 0.8451262701 | F76: -0.002907208249 | G76: 1044127.281 | H76: -1099132.695 | I76: 0.8171577838
B77: 4.120879121 | C77: 0.709349736 | D77: 0.004888676347 | E77: 0.8422290282 | F77: -0.002897241827 | G77: 918914.3564 | H77: -1143915.444 | I77: 0.8137973042
B78: 4.203296703 | C78: 0.7044945207 | D78: 0.004855215312 | E78: 0.8393417187 | F78: -0.002887309571 | G78: 828366.3271 | H78: -1176553.246 | I78: 0.8104506442
B79: 4.285714286 | C79: 0.6996725374 | D79: 0.004821983305 | E79: 0.8364643073 | F79: -0.002877411365 | G79: 721858.3167 | H79: -1178667.766 | I79: 0.807117747
B80: 4.368131868 | C80: 0.6948835586 | D80: 0.004788978757 | E80: 0.8335967602 | F80: -0.002867547092 | G80: 611608.1934 | H80: -1236729.96 | I80: 0.803798556
B81: 4.450549451 | C81: 0.6901273585 | D81: 0.004756200112 | E81: 0.8307390436 | F81: -0.002857716635 | G81: 526200.7546 | H81: -1325854.875 | I81: 0.8004930149
B82: 4.532967033 | C82: 0.6854037127 | D82: 0.004723645824 | E82: 0.8278911237 | F82: -0.002847919879 | G82: 631776.224 | H82: -920930.3352 | I82: 0.7972010674
B83: 4.615384615 | C83: 0.6807123983 | D83: 0.004691314358 | E83: 0.825052967 | F83: -0.002838156707 | G83: 586060.4891 | H83: -918729.7376 | I83: 0.7939226578
B84: 4.697802198 | C84: 0.6760531941 | D84: 0.004659204187 | E84: 0.82222454 | F84: -0.002828427006 | G84: 549724.1784 | H84: -914500.1005 | I84: 0.7906577303
B85: 4.78021978 | C85: 0.6714258803 | D85: 0.004627313797 | E85: 0.8194058093 | F85: -0.002818730659 | G85: 574786.4351 | H85: -872034.8015 | I85: 0.7874062295
B86: 4.862637363 | C86: 0.6668302387 | D86: 0.004595641684 | E86: 0.8165967418 | F86: -0.002809067554 | G86: 566271.846 | H86: -875742.5333 | I86: 0.7841681002
B87: 4.945054945 | C87: 0.6622660523 | D87: 0.004564186354 | E87: 0.8137973042 | F87: -0.002799437575 | G87: 557088.5889 | H87: -908098.9062 | I87: 0.7809432873
B88: 5 | C88: 0.6592406302 | D88: 0.003025422101 | E88: 0.8119363462 | F88: -0.001860958036 | G88: 549732.7128 | H88: -949933.847 | I88: 0.7788007831
